bitfinex-derivatives/quotes_BNBF0:USTF0_20250709
["timestamp","ask_amount","ask_price","bid_price","bid_amount"]
[1752067955470,1.69504948,662.63,662.22,1.69311567]
[1752067956473,1.69504948,662.64,662.21,1.69311567]
[1752067957075,1.69504948,662.57,662.19,1.649]
[1752067957370,1.69504948,662.56,662.19,1.649]
[1752067957571,1.69504948,662.57,662.19,1.649]
[1752067957972,1.69504948,662.58,662.19,1.649]
[1752067959072,1.69504948,662.6,662.19,1.649]
[1752067961476,1.69504948,662.61,662.19,1.649]
[1752067962374,1.69504948,662.61,662.1,1.69311567]
[1752067962975,1.69504948,662.62,662.09,1.69311567]
[1752067963175,1.69504948,662.63,662.07,1.69311567]
[1752067965076,2.25946699,662.79,662.07,1.69311567]
[1752067965077,1.69504948,662.64,662.07,1.69311567]
[1752067965875,1.69504948,662.64,662.06,1.69311567]
[1752067966080,1.69504948,662.64,662.08,1.7]
[1752067967080,1.69504948,662.63,662.08,1.7]
[1752067968679,1.69504948,662.63,662.08,3.39311567]
[1752067969380,1.69504948,662.63,662.08,1.7]
[1752067970082,1.69504948,662.62,662.08,3.39311567]
[1752067970579,1.69504948,662.6,662.11,1.69311567]
[1752067971082,1.69504948,662.62,662.08,3.39311567]
[1752067971980,1.69504948,662.65,662.08,1.7]
[1752067972182,1.69504948,662.66,662.08,1.7]
[1752067972582,1.69504948,662.67,662.08,1.7]
[1752067974684,1.69504948,662.66,662.08,1.7]
[1752067976386,1.69504948,662.69,662.08,1.7]
[1752067977790,1.69504948,662.68,662.08,1.7]
[1752067979187,1.69504948,662.68,662.07,1.69311567]
[1752067979592,1.69504948,662.64,662.13,1.69311567]
[1752067981589,1.69504948,662.63,662.14,3.67911567]
[1752067981894,1.69504948,662.63,662.15,1.69311567]
[1752067983987,1.69504948,662.7,662.14,1.986]
[1752067985194,1.69504948,662.72,662.14,1.986]
[1752067985394,1.69504948,662.73,662.14,1.986]
[1752067985690,1.69504948,662.72,662.14,1.986]
[1752067986191,1.69504948,662.73,662.14,1.986]
[1752067989295,1.69504948,662.77,662.14,1.986]
[1752067989795,1.69504948,662.76,662.14,1.986]
[1752067990095,1.69504948,662.77,662.14,1.986]
[1752067990292,2.25946699,662.96,662.14,1.986]
[1752067990293,1.69504948,662.76,662.14,1.986]
[1752067990597,1.69504948,662.73,662.14,1.986]
[1752067990797,1.69504948,662.68,662.2,1.69311567]
[1752067991093,1.69504948,662.69,662.18,1.69311567]
[1752067992498,1.69504948,662.68,662.19,1.69311567]
[1752067992899,1.69504948,662.69,662.19,1.69311567]
[1752067993401,1.69504948,662.68,662.2,1.69311567]
[1752067996199,1.69504948,662.67,662.2,1.69311567]
[1752067997905,1.69504948,662.68,662.2,1.69311567]
[1752067998102,1.69504948,662.66,662.22,1.69311567]
[1752068002302,1.69504948,662.65,662.23,1.54]
[1752068003204,1.69504948,662.66,662.23,3.23311567]
[1752068003803,1.69504948,662.66,662.23,1.54]
[1752068004209,1.69504948,662.66,662.23,3.23311567]
[1752068007113,1.69504948,662.66,662.23,1.54]
[1752068007309,1.69504948,662.66,662.23,3.23311567]
[1752068009116,1.69504948,662.65,662.23,3.23311567]
[1752068013216,1.69504948,662.68,662.23,1.54]
[1752068013416,1.69504948,662.75,662.23,1.54]
[1752068013823,1.69504948,662.84,662.23,1.54]
[1752068016323,1.69504948,662.82,662.23,1.54]
[1752068017218,1.69504948,662.83,662.23,1.54]
[1752068018120,1.69504948,662.79,662.23,1.54]
[1752068018322,1.69504948,662.8,662.23,1.54]
[1752068018821,1.69504948,662.77,662.23,1.54]
[1752068021426,1.69504948,662.78,662.23,1.54]
[1752068025831,1.69504948,662.83,662.23,1.54]
[1752068026126,1.69504948,662.84,662.23,1.54]
[1752068027230,1.69504948,662.83,662.23,1.54]
[1752068028528,1.69504948,662.87,662.23,1.54]
[1752068029630,1.69504948,662.88,662.23,1.54]
[1752068030137,1.69504948,662.87,662.23,1.54]
[1752068030435,1.69504948,662.88,662.23,1.54]
[1752068031037,1.69504948,662.85,662.23,1.54]
[1752068032834,1.69504948,662.85,662.23,3.23311567]
[1752068033037,1.69504948,662.83,662.23,3.23311567]
[1752068033238,1.69504948,662.82,662.25,1.69311567]
[1752068033835,1.69504948,662.81,662.26,1.69311567]
[1752068034338,1.69504948,662.82,662.25,1.69311567]
[1752068035141,1.69504948,662.82,662.23,1.54]
[1752068035142,1.69504948,662.82,662.26,1.69311567]
[1752068035436,1.69504948,662.78,662.3,1.69311567]
[1752068036140,1.69504948,662.78,662.31,1.69311567]
[1752068036342,1.69504948,662.78,662.3,1.69311567]
[1752068036840,1.69504948,662.78,662.31,1.69311567]
[1752068038839,1.69504948,662.79,662.3,1.69311567]
[1752068039143,1.69504948,662.78,662.3,1.69311567]
[1752068039945,1.69504948,662.78,662.31,1.69311567]
[1752068040142,1.69504948,662.78,662.3,1.69311567]
[1752068041244,1.69504948,662.79,662.3,1.69311567]
[1752068042646,1.69504948,662.79,662.23,1.54]
[1752068042647,1.69504948,662.78,662.31,1.69311567]
[1752068044242,1.69504948,662.78,662.32,1.69311567]
[1752068046949,1.69504948,662.75,662.29,1.69311567]
[1752068048346,1.69504948,662.74,662.29,1.69311567]
[1752068048549,1.69504948,662.77,662.25,1.69311567]
[1752068049951,1.69504948,662.77,662.26,1.69311567]
[1752068051150,1.69504948,662.76,662.26,1.69311567]
[1752068052055,1.69504948,662.77,662.26,1.69311567]
[1752068053757,2.25946699,662.9,662.26,1.69311567]
[1752068054054,2.25946699,662.9,662.13,2.26045137]
[1752068054257,1.71741124,663.02,662.0,3.39067706]
[1752068054456,0.4415341,663.02,662.0,3.39067706]
[1752068054656,3.38920049,663.03,662.0,3.39067706]
[1752068054857,1.71741124,663.52,662.0,3.39067706]
[1752068055154,1.71741124,663.51,661.94,0.26265043]
[1752068055359,1.71741124,663.5,661.94,0.26265043]
[1752068055657,1.71741124,663.49,661.94,0.26265043]
[1752068055856,1.71741124,663.48,661.94,0.26265043]
[1752068056057,1.71741124,663.47,661.95,2.356]
[1752068056352,2.25922908,662.85,662.19,2.25627472]
[1752068056558,1.69442181,662.74,662.3,1.69220604]
[1752068056857,2.25922908,662.85,662.19,2.25627472]
[1752068057153,3.38884363,662.95,662.09,3.38441209]
[1752068057657,1.71744115,663.36,661.95,2.356]
[1752068057854,1.69445528,662.74,662.3,1.69223086]
[1752068058461,1.69445528,662.74,662.31,1.69223086]
[1752068059161,1.69445528,662.73,662.3,1.69223086]
[1752068062360,1.69445528,662.73,662.31,1.69223086]
[1752068062561,1.69445528,662.72,662.3,1.69223086]
[1752068063166,1.69445528,662.73,662.29,1.69223086]
[1752068063365,2.25927371,662.85,662.17,2.25630782]
[1752068063665,1.69492768,662.73,662.29,1.69270568]
[1752068065168,1.69492768,662.69,662.25,1.69270568]
[1752068065369,5.64807272,663.44,661.95,2.356]
[1752068065370,1.69492768,662.65,662.23,1.69270568]
[1752068066271,1.69492768,662.64,662.23,1.69270568]
[1752068066466,1.69492768,662.65,662.23,1.69270568]
[1752068067269,1.69492768,662.64,662.23,1.69270568]
[1752068068373,1.69492768,662.65,662.23,1.69270568]
[1752068069273,1.69492768,662.64,662.23,1.69270568]
[1752068069473,1.69492768,662.65,662.23,1.69270568]
[1752068073271,1.69492768,662.72,662.14,1.69270568]
[1752068073475,1.69492768,662.72,662.13,1.69270568]
[1752068073675,1.69492768,662.73,662.13,1.69270568]
[1752068075772,1.69492768,662.75,662.14,1.69270568]
[1752068075972,1.69492768,662.75,661.97,2.25630782]
[1752068075973,1.69492768,662.75,662.15,1.69270568]
[1752068077273,1.69492768,662.76,662.15,1.69270568]
[1752068077772,1.69492768,662.75,662.15,1.69270568]
[1752068078177,1.69492768,662.76,662.14,1.69270568]
[1752068078874,1.69492768,662.75,662.14,1.69270568]
[1752068079078,1.69492768,662.71,662.21,1.69270568]
[1752068080077,1.69492768,662.69,662.23,1.69270568]
[1752068080276,1.69492768,662.7,662.23,1.69270568]
[1752068080681,1.69492768,662.71,662.22,1.69270568]
[1752068081375,1.69492768,662.72,662.2,1.69270568]
[1752068082076,1.69492768,662.71,662.2,1.69270568]
[1752068082276,1.69492768,662.72,662.2,1.69270568]
[1752068084080,1.69492768,662.71,662.19,1.69270568]
[1752068084383,1.69492768,662.7,662.18,1.69270568]
[1752068084984,1.69492768,662.69,662.19,1.69270568]
[1752068085582,1.69492768,662.69,662.18,1.69270568]
[1752068087483,1.69492768,662.64,662.13,1.69270568]
[1752068087686,1.69492768,662.64,662.14,1.69270568]
[1752068087985,1.69492768,662.63,662.15,1.69270568]
[1752068088885,1.69492768,662.62,662.15,1.69270568]
[1752068089286,1.69492768,662.61,662.16,1.69270568]
[1752068090386,1.69492768,662.62,662.17,1.69270568]
[1752068090590,1.69492768,662.62,662.16,1.69270568]
[1752068090987,1.69492768,662.55,662.1,1.69270568]
[1752068091491,1.69492768,662.56,662.09,1.69270568]
[1752068092388,1.69492768,662.57,662.09,1.69270568]
[1752068093289,1.69492768,662.57,662.08,1.69270568]
[1752068095394,2.25927371,662.68,662.08,1.69270568]
[1752068095395,1.69492768,662.58,662.08,1.69270568]
[1752068096390,1.69492768,662.57,662.06,1.69270568]
[1752068096894,1.69492768,662.58,662.05,1.69270568]
[1752068097194,1.69492768,662.58,662.04,1.69270568]
[1752068097489,1.69492768,662.59,662.04,1.69270568]
[1752068097693,1.69492768,662.58,662.04,1.69270568]
[1752068098390,1.69492768,662.59,662.04,1.69270568]
[1752068100796,1.69492768,662.59,662.05,1.69270568]
[1752068100992,1.69492768,662.6,662.04,1.69270568]
[1752068101393,1.69492768,662.61,662.04,1.69270568]
[1752068101593,1.69492768,662.6,662.04,1.69270568]
[1752068101795,1.69492768,662.58,662.01,1.69270568]
[1752068101994,1.69492768,662.57,662.01,1.69270568]
[1752068102193,1.69492768,662.57,662.0,1.69270568]
[1752068102393,2.25927371,662.7,662.0,1.69270568]
[1752068102394,1.69492768,662.58,662.0,1.69270568]
[1752068102794,1.69492768,662.58,662.01,1.868]
[1752068102997,1.69492768,662.57,662.01,1.868]
[1752068103400,1.69492768,662.58,662.01,1.868]
[1752068103599,1.69492768,662.57,662.01,3.56070568]
[1752068104398,1.69492768,662.57,662.01,1.868]
[1752068104600,1.69492768,662.58,662.01,3.56070568]
[1752068105403,1.69492768,662.58,662.01,1.868]
[1752068105602,1.69492768,662.58,662.01,3.56070568]
[1752068105898,1.69492768,662.59,662.01,1.868]
[1752068108398,1.69492768,662.6,662.01,1.868]
[1752068108603,1.69492768,662.59,662.01,1.868]
[1752068108800,1.69492768,662.6,662.01,1.868]
[1752068111003,1.69492768,662.62,662.01,1.868]
[1752068111704,1.69492768,662.61,662.01,1.868]
[1752068113308,1.69492768,662.6,662.01,1.868]
[1752068116710,1.69492768,662.61,662.01,1.868]
[1752068116906,1.69492768,662.6,662.01,1.868]
[1752068119911,1.69492768,662.58,662.01,1.868]
[1752068120112,1.69492768,662.57,662.02,1.69270568]
[1752068120312,1.69492768,662.56,662.02,1.69270568]
[1752068121410,1.69492768,662.57,662.02,1.69270568]
[1752068121614,1.69492768,662.56,662.02,1.69270568]
[1752068123210,1.69492768,662.58,662.01,1.868]
[1752068123909,1.69492768,662.6,662.01,1.868]
[1752068125409,1.69492768,662.61,662.01,1.868]
[1752068126015,1.69492768,662.63,662.01,1.868]
[1752068126215,3.38891057,662.97,662.01,1.868]
[1752068126216,1.69492768,662.68,662.01,1.868]
[1752068127017,1.69255066,662.69,662.01,1.868]
[1752068128417,1.69255066,662.7,662.01,1.868]
[1752068129417,1.69255066,662.69,662.01,1.868]
[1752068130314,1.69255066,662.68,662.01,3.55937006]
[1752068131419,1.69255066,662.67,662.01,3.55937006]
[1752068131715,1.69255066,662.68,662.01,1.868]
[1752068132221,1.69255066,662.65,662.04,1.69137006]
[1752068132514,1.69255066,662.65,662.05,1.69137006]
[1752068132719,1.6929042,662.65,662.05,1.69174629]
[1752068133013,1.6929042,662.64,662.04,1.69174629]
[1752068133718,1.6929042,662.65,662.04,1.69174629]
[1752068134114,1.6929042,662.65,662.05,1.69174629]
[1752068134719,1.6929042,662.63,662.08,1.69174629]
[1752068136322,1.6929042,662.61,662.1,1.69174629]
[1752068136822,1.6929042,662.61,662.11,1.69174629]
[1752068138222,1.6929042,662.6,662.11,1.69174629]
[1752068138423,2.25927371,662.71,662.01,4.12430782]
[1752068138624,1.69362247,662.6,662.12,1.69246054]
[1752068139422,1.69362247,662.59,662.12,1.69246054]
[1752068141325,1.69362247,662.59,662.13,1.69246054]
[1752068142523,2.25927371,662.69,662.01,1.868]
[1752068142524,1.69362247,662.61,662.09,1.69246054]
[1752068143329,1.69362247,662.6,662.1,1.69246054]
[1752068144426,1.69362247,662.6,662.11,1.69246054]
[1752068144830,1.69362247,662.6,662.1,1.69246054]
[1752068145327,1.69362247,662.6,662.11,1.69246054]
[1752068146131,1.69362247,662.59,662.1,1.69246054]
[1752068146432,1.69362247,662.59,662.11,1.69246054]
[1752068147429,1.69362247,662.58,662.11,1.69246054]
[1752068148630,1.69362247,662.58,662.12,1.69246054]
[1752068150133,1.69362247,662.55,662.15,1.69246054]
[1752068150429,1.69362247,662.56,662.16,1.69246054]
[1752068151334,1.69362247,662.55,662.16,1.69246054]
[1752068151632,1.69362247,662.54,662.15,1.69246054]
[1752068152537,1.69362247,662.57,662.11,1.69246054]
[1752068152737,1.69362247,662.54,662.08,1.69246054]
[1752068153937,1.69362247,662.55,662.09,1.69246054]
[1752068154134,1.69362247,662.54,662.09,1.69246054]
[1752068155438,1.69362247,662.54,662.08,1.69246054]
[1752068156735,1.69362247,662.5,662.04,1.69246054]
[1752068157335,1.69362247,662.51,662.04,1.69246054]
[1752068157736,1.69362247,662.5,662.04,1.69246054]
[1752068159444,1.69362247,662.48,662.07,1.69246054]
[1752068161444,1.69362247,662.5,662.05,1.69246054]
[1752068163345,1.69362247,662.49,662.05,1.69246054]
[1752068163549,1.69362247,662.5,662.06,2.436]
[1752068163744,1.69362247,662.49,662.06,2.436]
[1752068163944,1.69362247,662.46,662.06,2.436]
[1752068164342,1.69362247,662.45,662.06,2.436]
[1752068165240,5.64807272,663.22,662.06,2.436]
[1752068165241,1.69362247,662.48,662.06,2.436]
[1752068165640,1.69362247,662.49,662.06,2.436]
[1752068165845,1.69362247,662.48,662.06,2.436]
[1752068167144,1.69362247,662.49,662.06,2.436]
[1752068167349,1.69362247,662.48,662.06,2.436]
[1752068168146,1.69362247,662.49,662.06,2.436]
[1752068168350,2.25927371,662.67,662.06,2.436]
[1752068168545,1.69467747,662.49,662.06,2.436]
[1752068171550,1.69467747,662.48,662.06,2.436]
[1752068172150,1.69467747,662.49,662.06,2.436]
[1752068172547,1.69467747,662.48,662.06,2.436]
[1752068173354,1.69467747,662.5,662.06,2.436]
[1752068173552,1.69467747,662.42,662.06,2.436]
[1752068173847,1.69467747,662.41,662.06,2.436]
[1752068174048,1.69467747,662.4,662.06,2.436]
[1752068174246,1.69467747,662.41,662.06,2.436]
[1752068174450,1.69467747,662.39,662.06,2.436]
[1752068175251,1.69467747,662.41,662.06,2.436]
[1752068176052,1.69467747,662.39,662.06,2.436]
[1752068176349,1.69467747,662.4,662.06,2.436]
[1752068177151,1.69467747,662.41,662.06,2.436]
[1752068178153,1.69156295,662.42,662.06,2.436]
[1752068179354,1.69156295,662.43,662.06,2.436]
[1752068179852,1.69156295,662.41,662.06,2.436]
[1752068180652,1.69156295,662.4,662.06,2.436]
[1752068181049,1.69156295,662.39,662.06,2.436]
[1752068181654,1.69156295,662.38,662.06,2.436]
[1752068181950,1.69156295,662.37,662.06,2.436]
[1752068182150,1.69156295,662.38,662.06,2.436]
[1752068183653,1.69156295,662.39,662.06,2.436]
[1752068184352,1.69156295,662.4,662.06,2.436]
[1752068184550,1.69156295,662.39,662.06,2.436]
[1752068184754,1.69156295,662.4,662.06,2.436]
[1752068186052,1.69156295,662.39,662.06,2.436]
[1752068186351,7.90862858,663.44,662.06,2.436]
[1752068186352,1.69156295,662.41,662.06,2.436]
[1752068188055,1.69156295,662.42,662.06,2.436]
[1752068188853,1.69156295,662.41,662.06,2.436]
[1752068189253,1.69156295,662.42,662.06,2.436]
[1752068189453,1.69156295,662.41,662.06,2.436]
[1752068190354,1.69156295,662.42,662.06,2.436]
[1752068192361,1.69156295,662.41,662.06,2.436]
[1752068192562,1.69156295,662.42,662.06,2.436]
[1752068194366,1.69156295,662.41,662.06,2.436]
[1752068195467,1.69156295,662.42,662.06,2.436]
[1752068196163,1.69156295,662.41,662.06,2.436]
[1752068197471,1.69156295,662.4,662.06,2.436]
[1752068198070,1.69156295,662.43,662.06,2.436]
[1752068198768,1.69156295,662.43,661.6,1.69200635]
[1752068199271,1.69156295,662.43,661.59,1.69200635]
[1752068199467,1.69156295,662.43,661.6,1.69200635]
[1752068200468,1.69156295,662.42,661.6,1.69200635]
[1752068201473,1.69156295,662.42,661.61,1.59]
[1752068201770,1.68844671,662.43,661.61,1.59]
[1752068201969,1.68844671,662.42,661.61,1.59]
[1752068202372,2.25927371,662.58,661.61,1.59]
[1752068202573,1.68854614,662.42,661.61,1.59]
[1752068204275,1.68854614,662.41,661.61,1.59]
[1752068204974,1.68854614,662.41,661.61,3.27895034]
[1752068205876,1.68854614,662.4,661.61,3.27895034]
[1752068206675,1.68854614,662.37,661.66,1.68895034]
[1752068207280,2.25927371,662.5,661.61,1.59]
[1752068207481,1.68932216,662.37,661.67,1.68974427]
[1752068207675,1.68932216,662.39,661.63,1.68974427]
[1752068208281,1.68932216,662.39,661.64,1.68974427]
[1752068209076,1.68932216,662.4,661.62,1.68974427]
[1752068209276,1.68932216,662.4,661.61,1.59]
[1752068209277,1.68932216,662.4,661.63,1.68974427]
[1752068210076,1.68932216,662.39,661.64,1.68974427]
[1752068211181,1.68932216,662.39,661.65,1.68974427]
[1752068211380,1.68932216,662.38,661.65,1.68974427]
[1752068212077,1.68932216,662.38,661.66,1.68974427]
[1752068212884,1.68932216,662.38,661.67,1.68974427]
[1752068213079,1.6903741,662.38,661.67,1.69114397]
[1752068214385,1.6903741,662.38,661.68,1.69114397]
[1752068215186,1.6903741,662.38,661.69,1.69114397]
[1752068215383,1.6903741,662.37,661.7,1.69114397]
[1752068215886,1.6903741,662.37,661.71,1.934]
[1752068217581,1.6903741,662.34,661.74,1.69114397]
[1752068217783,1.6903741,662.34,661.75,1.69114397]
[1752068218486,1.6903741,662.32,661.78,1.69114397]
[1752068219384,1.6903741,662.31,661.79,1.69114397]
[1752068219785,1.6903741,662.32,661.78,1.69114397]
[1752068220491,1.6903741,662.45,661.71,1.934]
[1752068220688,1.6903741,662.46,661.71,1.934]
[1752068220889,1.6903741,662.56,661.71,1.934]
[1752068221092,1.6903741,662.55,661.71,1.934]
[1752068222292,1.6903741,662.45,661.84,1.69114397]
[1752068222492,1.6903741,662.49,661.88,1.69114397]
[1752068222692,1.6903741,662.56,661.95,1.69114397]
[1752068223092,5.64807272,663.45,661.96,1.69114397]
[1752068223093,1.6903741,662.55,661.96,1.69114397]
[1752068223492,1.6903741,662.56,661.96,1.69114397]
[1752068223690,1.6903741,662.56,661.95,1.69114397]
[1752068223993,1.6903741,662.55,661.97,1.69114397]
[1752068224391,1.6903741,662.56,661.96,1.69114397]
[1752068224894,1.6903741,662.55,661.98,1.69114397]
[1752068225389,1.6903741,662.55,661.97,1.69114397]
[1752068226291,1.6903741,662.56,661.97,1.69114397]
[1752068227095,1.6903741,662.55,661.97,1.69114397]
[1752068227491,1.6903741,662.56,661.96,1.69114397]
[1752068228592,1.6903741,662.55,661.98,1.69114397]
[1752068229391,1.6903741,662.56,661.97,1.69114397]
[1752068229896,1.6903741,662.57,661.96,1.69114397]
[1752068230396,1.6903741,662.58,661.96,1.69114397]
[1752068231196,1.6903741,662.57,661.96,1.69114397]
[1752068231493,1.6903741,662.58,661.95,1.69114397]
[1752068232498,1.6903741,662.58,661.94,1.69114397]
[1752068233398,1.6903741,662.59,661.94,1.69114397]
[1752068233594,5.64807272,663.37,661.94,1.69114397]
[1752068233595,1.6903741,662.58,661.94,1.69114397]
[1752068234102,1.6903741,662.57,661.96,1.69114397]
[1752068234297,1.6903741,662.58,661.96,1.69114397]
[1752068234499,1.6903741,662.58,661.95,1.69114397]
[1752068235403,1.6903741,662.58,661.94,1.69114397]
[1752068235602,1.6903741,662.59,661.92,1.69114397]
[1752068236402,1.6903741,662.6,661.92,1.69114397]
[1752068237503,1.6903741,662.6,661.91,1.69114397]
[1752068239402,1.6903741,662.61,661.9,1.69114397]
[1752068239903,7.90862858,663.71,661.91,1.69114397]
[1752068239904,1.6903741,662.6,661.91,1.69114397]
[1752068241202,1.6903741,662.61,661.91,1.69114397]
[1752068241407,1.6903741,662.61,661.9,1.69114397]
[1752068241603,1.6903741,662.6,661.91,1.69114397]
[1752068242307,1.6903741,662.61,661.9,1.69114397]
[1752068242608,1.6903741,662.6,661.91,1.69114397]
[1752068243109,1.6903741,662.6,661.9,1.69114397]
[1752068243809,1.6903741,662.57,661.86,1.69114397]
[1752068244416,1.6903741,662.56,661.86,1.69114397]
[1752068244912,1.6903741,662.57,661.86,1.69114397]
[1752068245511,1.6903741,662.57,661.71,1.934]
[1752068245512,1.6903741,662.55,661.89,1.69114397]
[1752068246718,1.6903741,662.55,661.9,1.69114397]
[1752068247216,1.6903741,662.55,661.89,1.69114397]
[1752068247416,1.6903741,662.55,661.9,1.69114397]
[1752068248517,1.6903741,662.55,661.78,2.25630782]
[1752068248518,1.6903741,662.55,661.89,1.69114397]
[1752068249114,1.6903741,662.54,661.91,1.69114397]
[1752068249418,1.6903741,662.55,661.9,1.69114397]
[1752068250518,1.6903741,662.55,661.91,1.759]
[1752068251218,1.6903741,662.54,661.91,3.45014397]
[1752068253221,1.6903741,662.53,661.91,1.759]
[1752068253716,1.6903741,662.54,661.91,1.759]
[1752068255321,1.6903741,662.53,661.91,1.759]
[1752068257821,1.6903741,662.53,661.91,3.45014397]
[1752068259119,1.6903741,662.52,661.91,3.45014397]
[1752068259520,1.6903741,662.53,661.91,1.759]
[1752068260019,1.6903741,662.54,661.91,1.759]
[1752068260219,1.6903741,662.53,661.91,1.759]
[1752068260420,1.6903741,662.51,661.91,1.759]
[1752068261620,1.6903741,662.5,661.91,1.759]
[1752068263720,1.6903741,662.52,661.91,1.759]
[1752068264121,5.64807272,663.39,661.91,1.759]
[1752068264122,1.6903741,662.53,661.91,1.759]
[1752068264525,1.6903741,662.54,661.91,1.759]
[1752068266124,1.6903741,662.53,661.91,1.759]
[1752068268625,1.6903741,662.52,661.91,1.759]
[1752068270328,1.6903741,662.51,661.91,1.759]
[1752068270626,1.6903741,662.51,661.87,1.69114397]
[1752068271126,1.6903741,662.51,661.88,1.69114397]
[1752068272129,1.6903741,662.5,661.89,1.69114397]
[1752068272827,1.6903741,662.51,661.9,1.69114397]
[1752068273129,1.6903741,662.5,661.9,1.69114397]
[1752068273327,1.6903741,662.48,661.93,1.69114397]
[1752068273728,1.6903741,662.48,661.91,2.36]
[1752068273729,1.6903741,662.49,661.92,1.69114397]
[1752068274325,1.6903741,662.48,661.94,1.69114397]
[1752068274827,1.6903741,662.51,661.91,2.36]
[1752068275130,1.6903741,662.5,661.91,2.36]
[1752068275725,1.6903741,662.56,661.97,1.69114397]
[1752068275926,1.6903741,662.57,661.97,1.69114397]
[1752068276129,1.6903741,662.56,661.97,1.69114397]
[1752068277028,1.6903741,662.55,661.99,1.69114397]
[1752068277331,1.6903741,662.55,662.0,1.69114397]
[1752068277527,1.6903741,662.61,662.06,1.69114397]
[1752068278231,1.6903741,662.61,662.07,1.69114397]
[1752068279234,1.6903741,662.6,662.08,1.69114397]
[1752068281430,1.6903741,662.61,662.08,1.69114397]
[1752068281930,1.6903741,662.6,662.08,1.69114397]
[1752068282436,1.6903741,662.61,662.08,1.69114397]
[1752068283535,1.6903741,662.67,661.99,1.69114397]
[1752068285335,1.6903741,662.67,661.98,1.69114397]
[1752068286031,1.6903741,662.67,661.99,1.69114397]
[1752068286536,1.6903741,662.68,661.98,1.69114397]
[1752068286836,1.6903741,662.67,661.99,1.69114397]
[1752068287534,1.6903741,662.67,661.98,1.69114397]
[1752068288835,1.6903741,662.67,661.99,2.136]
[1752068290339,1.6903741,662.68,661.99,2.136]
[1752068293441,1.6903741,662.65,662.01,1.69114397]
[1752068294941,1.6903741,662.65,662.02,1.69114397]
[1752068295443,1.6903741,662.65,662.01,1.69114397]
[1752068295642,1.6903741,662.66,662.01,1.69114397]
[1752068295839,1.6903741,662.64,662.04,1.69114397]
[1752068296042,1.6903741,662.65,662.02,1.69114397]
[1752068297642,1.6903741,662.65,662.01,1.69114397]
[1752068298343,1.6903741,662.66,662.01,1.69114397]
[1752068298540,1.6903741,662.7,662.06,1.69114397]
[1752068299244,1.6903741,662.7,662.07,1.69114397]
[1752068299444,1.6903741,662.7,662.06,1.69114397]
[1752068299645,1.6903741,662.7,662.07,1.69114397]
[1752068300441,1.6903741,662.7,662.06,1.69114397]
[1752068302946,1.6903741,662.68,662.08,1.69114397]
[1752068303746,1.6903741,662.67,662.1,1.69114397]
[1752068305447,1.6903741,662.67,662.11,1.69114397]
[1752068305848,1.6903741,662.67,662.12,1.69114397]
[1752068306049,1.6903741,662.66,662.12,1.69114397]
[1752068308047,1.6903741,662.66,662.11,1.69114397]
[1752068309452,1.6903741,662.66,662.12,1.69114397]
[1752068309653,1.6903741,662.66,662.11,1.69114397]
[1752068310952,1.6903741,662.67,662.11,1.69114397]
[1752068314257,2.25927371,662.78,662.0,2.25630782]
[1752068314460,1.69179961,662.67,662.11,1.69106125]
[1752068315661,1.69179961,662.68,662.1,1.69106125]
[1752068316760,1.69179961,662.69,662.07,1.69106125]
[1752068317863,1.69179961,662.69,662.08,1.69106125]
[1752068318361,1.69179961,662.69,662.07,1.69106125]
[1752068318758,1.69179961,662.69,662.08,1.69106125]
[1752068322466,1.69179961,662.68,662.08,1.69106125]
[1752068322667,1.69179961,662.68,662.09,1.69106125]
[1752068323170,1.69179961,662.68,662.08,1.69106125]
[1752068324367,1.69179961,662.71,662.03,1.69106125]
[1752068324566,1.69179961,662.7,662.02,1.69106125]
[1752068325367,1.69179961,662.7,662.03,1.69106125]
[1752068327371,1.69179961,662.69,662.03,1.69106125]
[1752068328268,1.69314189,662.69,662.03,1.6921747]
[1752068328467,1.69314189,662.69,662.04,1.6921747]
[1752068329269,1.69314189,662.68,662.04,1.6921747]
[1752068329772,1.69314189,662.6,661.99,2.136]
[1752068329970,1.69314189,662.57,662.01,1.6921747]
[1752068330474,1.69314189,662.57,662.02,1.6921747]
[1752068331576,1.69314189,662.56,662.02,1.6921747]
[1752068332373,1.69314189,662.56,662.04,1.6921747]
[1752068333380,1.69314189,662.58,662.02,1.6921747]
[1752068333577,1.69314189,662.57,662.02,1.6921747]
[1752068334181,1.69314189,662.58,662.02,1.6921747]
[1752068334383,1.69314189,662.56,662.04,1.6921747]
[1752068335478,1.69314189,662.55,662.05,1.6921747]
[1752068336980,1.69314189,662.55,662.04,1.6921747]
[1752068337285,1.69314189,662.63,661.99,2.136]
[1752068340088,1.69314189,662.67,661.97,1.6921747]
[1752068340887,1.69314189,662.67,661.98,1.6921747]